bitfinex/quotes_BTCUSD_20241024
["timestamp","ask_amount","ask_price","bid_price","bid_amount"]
[1729738053353,0.00165,67280.0,67279.0,0.734835]
[1729738053787,0.00165,67280.0,67279.0,1.04486154]
[1729738054589,0.00165,67280.0,67279.0,1.04956202]
[1729738054846,0.00165,67280.0,67279.0,1.04756202]
[1729738055644,0.00165,67280.0,67279.0,1.08039262]
[1729738056045,0.00165,67280.0,67279.0,1.07574423]
[1729738056478,0.00165,67280.0,67279.0,1.06830681]
[1729738056632,0.00165,67280.0,67279.0,1.07030681]
[1729738058649,0.00165,67280.0,67279.0,1.08239122]
[1729738058983,0.00165,67280.0,67279.0,1.07495466]
[1729738059566,0.00165,67280.0,67279.0,1.07295466]
[1729738060234,0.00165,67280.0,67279.0,1.16411092]
[1729738060635,0.00165,67280.0,67279.0,1.17619533]
[1729738064587,0.00165,67280.0,67279.0,1.17819549]
[1729738065040,0.00165,67292.0,67291.0,0.118886]
[1729738065262,0.00165,67292.0,67291.0,0.22212683]
[1729738065467,0.00165,67292.0,67291.0,0.24093346]
[1729738065673,0.00165,67292.0,67291.0,0.24390539]
[1729738065889,0.00165,67292.0,67291.0,0.24093346]
[1729738068197,0.00165,67292.0,67291.0,0.25022903]
[1729738068452,0.00165,67292.0,67291.0,0.24093314]
[1729738069495,0.00165,67292.0,67291.0,0.14977688]
[1729738069864,0.00165,67292.0,67291.0,0.30028069]
[1729738071321,0.00165,67292.0,67291.0,0.28819644]
[1729738071521,0.00165,67292.0,67291.0,0.30028082]
[1729738076257,0.00165,67292.0,67291.0,0.18139482]
[1729738077926,0.00165,67292.0,67291.0,0.30028082]
[1729738079001,0.00165,67292.0,67291.0,0.30028153]
[1729738079201,0.00165,67292.0,67291.0,0.18139553]
[1729738080339,0.00165,67292.0,67291.0,0.18139579]
[1729738081794,0.00165,67292.0,67291.0,0.30028179]
[1729738082168,0.00165,67292.0,67291.0,0.18139579]
[1729738086144,0.00165,67292.0,67291.0,0.03089198]
[1729738086145,0.311234,67292.0,67291.0,0.03089198]
[1729738086417,0.40239026,67292.0,67291.0,0.02345484]
[1729738086629,0.58638106,67292.0,67291.0,0.00464821]
[1729738086832,0.294596,67286.0,67284.0,0.02811269]
[1729738087016,0.1757,67286.0,67285.0,0.01208769]
[1729738087156,0.0963,67286.0,67285.0,0.02818988]
[1729738087358,0.0963,67286.0,67285.0,0.01208769]
[1729738087584,0.0963,67286.0,67285.0,0.02818988]
[1729738087797,0.0963,67286.0,67285.0,0.01208769]
[1729738088211,0.0963,67286.0,67285.0,0.02818988]
[1729738088612,0.005,67287.0,67285.0,0.02818988]
[1729738088814,0.005,67287.0,67286.0,0.01208769]
[1729738090655,0.123893,67287.0,67286.0,0.01208769]
[1729738091225,0.005,67287.0,67286.0,0.01208769]
[1729738092339,0.123893,67287.0,67286.0,0.01208769]
[1729738092536,0.005,67287.0,67286.0,0.00464911]
[1729738092748,0.005,67287.0,67286.0,0.01208732]
[1729738092977,0.09615626,67287.0,67286.0,0.01208744]
[1729738093170,0.09615626,67287.0,67286.0,0.00464911]
[1729738094347,0.09615626,67287.0,67286.0,0.01208724]
[1729738094793,0.21504926,67287.0,67286.0,0.00464911]
[1729738095006,0.09615626,67287.0,67286.0,0.00464911]
[1729738095166,0.1406348,67287.0,67286.0,0.00464911]
[1729738095345,0.09615626,67287.0,67286.0,0.00464911]
[1729738095565,0.1406348,67287.0,67286.0,0.00464911]
[1729738096089,0.2595278,67287.0,67286.0,0.00464911]
[1729738096327,0.09615626,67287.0,67286.0,0.00464911]
[1729738096570,0.1406348,67287.0,67286.0,0.00464911]
[1729738096821,0.2595278,67287.0,67286.0,0.00464911]
[1729738097206,0.09615626,67287.0,67286.0,0.00464911]
[1729738097406,0.1406348,67287.0,67286.0,0.00464911]
[1729738097584,0.04947854,67287.0,67286.0,0.00464911]
[1729738097986,0.005,67287.0,67286.0,0.15515292]
[1729738098383,0.005,67287.0,67286.0,0.17879088]
[1729738098834,0.005,67287.0,67286.0,0.17879056]
[1729738099600,0.005,67287.0,67286.0,0.17135248]
[1729738100050,0.005,67287.0,67286.0,0.17879058]
[1729738102270,0.005,67287.0,67286.0,0.16670368]
[1729738102419,0.005,67287.0,67286.0,0.17879041]
[1729738105340,0.00165,67287.0,67286.0,0.26159041]
[1729738105543,0.00165,67287.0,67286.0,0.38048541]
[1729738105750,0.00165,67287.0,67286.0,0.45955494]
[1729738105952,0.00165,67287.0,67286.0,0.47164112]
[1729738106155,0.00165,67287.0,67286.0,0.38048486]
[1729738106955,0.00165,67287.0,67286.0,0.26158986]
[1729738107355,0.00165,67287.0,67286.0,0.38048486]
[1729738108765,0.00165,67287.0,67286.0,0.47164112]
[1729738108969,0.00165,67287.0,67286.0,0.47296721]
[1729738109173,0.00165,67287.0,67286.0,0.38181095]
[1729738109373,0.00165,67287.0,67286.0,0.38181039]
[1729738109577,0.00165,67287.0,67286.0,0.3804838]
[1729738109783,0.00165,67287.0,67286.0,0.38181029]
[1729738110033,0.00165,67287.0,67286.0,0.38048382]
[1729738112127,0.00165,67287.0,67286.0,0.82634382]
[1729738112340,0.00165,67287.0,67286.0,0.70744882]
[1729738114645,0.09280626,67287.0,67286.0,0.62464882]
[1729738115467,0.00165,67287.0,67286.0,0.60844895]
[1729738115890,0.00165,67287.0,67286.0,0.62452385]
[1729738116514,0.00165,67287.0,67286.0,0.61243871]
[1729738116718,0.00165,67287.0,67286.0,0.62452557]
[1729738117139,0.21169926,67287.0,67286.0,0.62452557]
[1729738117349,0.21169926,67287.0,67286.0,0.47402176]
[1729738117350,0.35649665,67287.0,67286.0,0.47402176]
[1729738117550,0.31199926,67287.0,67286.0,0.47402176]
[1729738117975,0.37874534,67287.0,67286.0,0.47402176]
[1729738118625,0.31199926,67287.0,67286.0,0.46658369]
[1729738119044,0.31699926,67287.0,67286.0,0.46658369]
[1729738119264,0.658448,67287.0,67286.0,0.46658369]
[1729738119482,0.56945322,67287.0,67286.0,0.46658369]
[1729738120577,0.56945322,67287.0,67286.0,0.4619349]
[1729738120803,0.56945322,67287.0,67286.0,0.46658405]
[1729738121074,0.17100396,67287.0,67286.0,0.62173701]
[1729738121320,0.00665,67287.0,67286.0,0.61708786]
[1729738121559,0.07344036,67287.0,67286.0,0.61708786]
[1729738121804,0.00665,67287.0,67286.0,0.62452607]
[1729738122018,0.05117662,67287.0,67286.0,0.62452607]
[1729738122245,0.00665,67287.0,67286.0,0.62452607]
[1729738122501,0.07344036,67287.0,67286.0,0.62452607]
[1729738123382,0.19233336,67287.0,67286.0,0.62452607]
[1729738123591,0.19234006,67287.0,67286.0,0.62452607]
[1729738124634,0.19234006,67287.0,67286.0,0.61708786]
[1729738124635,0.2899332,67287.0,67286.0,0.61708786]
[1729738124812,0.125543,67287.0,67286.0,0.61708786]
[1729738125015,0.19234394,67287.0,67286.0,0.6245262]
[1729738125368,0.125543,67287.0,67286.0,0.6245262]
[1729738126285,0.19234702,67287.0,67286.0,0.6245262]
[1729738126412,0.19234758,67287.0,67286.0,0.6245262]
[1729738126619,0.125543,67287.0,67286.0,0.6245262]
[1729738127024,0.07345455,67287.0,67286.0,0.6245262]
[1729738127441,0.07345455,67287.0,67286.0,0.61243871]
[1729738127442,0.19234755,67287.0,67286.0,0.61243871]
[1729738127635,0.19234755,67287.0,67286.0,0.62452577]
[1729738128040,0.07345455,67287.0,67286.0,0.62452577]
[1729738128271,0.07346223,67287.0,67286.0,0.62452577]
[1729738128836,0.00665,67287.0,67286.0,0.62452568]
[1729738128989,0.07346223,67287.0,67286.0,0.62452568]
[1729738130378,0.07846223,67287.0,67286.0,0.62452568]
[1729738130586,0.19235523,67287.0,67286.0,0.62452568]
[1729738131052,0.125543,67287.0,67286.0,0.62452568]
[1729738131278,0.29000065,67287.0,67286.0,0.62452568]
[1729738131756,0.125543,67287.0,67286.0,0.62452568]
[1729738131959,0.00665,67287.0,67286.0,0.61243871]
[1729738132169,0.00665,67287.0,67286.0,0.62452575]
[1729738132170,0.19236961,67287.0,67286.0,0.62452575]
[1729738133235,0.19236957,67287.0,67286.0,0.62452575]
[1729738135137,0.07347657,67287.0,67286.0,0.62452575]
[1729738135362,0.06847657,67287.0,67286.0,0.62452575]
[1729738135604,0.05120141,67287.0,67286.0,0.62452575]
[1729738135836,0.05120141,67287.0,67286.0,0.62452533]
[1729738136689,0.00165,67287.0,67286.0,0.62452533]
[1729738137380,0.04620141,67287.0,67286.0,0.62452533]
[1729738137825,0.00665,67287.0,67286.0,0.62452533]
[1729738138452,0.00165,67287.0,67286.0,0.62452533]
[1729738140238,0.00665,67287.0,67286.0,0.62452533]
[1729738140652,0.00165,67287.0,67286.0,0.62452533]
[1729738140874,0.00165,67287.0,67286.0,0.79222533]
[1729738143009,0.00165,67287.0,67286.0,0.91112033]
[1729738143233,0.00165,67287.0,67286.0,0.91244496]
[1729738143448,0.00165,67287.0,67286.0,0.91112033]
[1729738144348,0.00165,67287.0,67286.0,0.91244496]
[1729738144576,0.00165,67287.0,67286.0,0.91112033]
[1729738145509,0.00165,67287.0,67286.0,0.91111926]
[1729738147535,0.00165,67287.0,67286.0,0.91244548]
[1729738148614,0.00165,67287.0,67286.0,0.91111926]
[1729738149071,0.00165,67287.0,67286.0,0.91111917]
[1729738149489,0.00165,67287.0,67286.0,0.91111916]
[1729738150471,0.00165,67287.0,67286.0,0.91244598]
[1729738151940,0.00165,67287.0,67286.0,0.91111916]
[1729738152720,0.00165,67287.0,67286.0,0.91111882]
[1729738153096,0.00165,67287.0,67286.0,0.91244551]
[1729738153310,0.00165,67287.0,67286.0,0.91111882]
[1729738153535,0.00165,67287.0,67286.0,0.91244563]
[1729738153740,0.00165,67287.0,67286.0,0.91111882]
[1729738153953,0.00165,67287.0,67286.0,0.91244561]
[1729738155227,0.00165,67287.0,67286.0,0.91111882]
[1729738155448,0.00165,67287.0,67286.0,0.91244555]
[1729738155856,0.00165,67287.0,67286.0,0.91111882]
[1729738157712,0.00165,67287.0,67286.0,0.9124457]
[1729738157934,0.00165,67287.0,67286.0,0.91111882]
[1729738163113,0.00165,67287.0,67286.0,1.00727508]
[1729738163949,0.00165,67287.0,67286.0,1.00927508]
[1729738164824,0.00165,67287.0,67286.0,1.00727508]
[1729738165221,0.00165,67287.0,67286.0,0.91611882]
[1729738166772,0.00165,67287.0,67286.0,1.00727508]
[1729738166992,0.00165,67287.0,67286.0,0.99718997]
[1729738167196,0.00165,67287.0,67286.0,1.00727423]
[1729738167414,0.00165,67287.0,67286.0,1.00927423]
[1729738168200,0.00165,67287.0,67286.0,0.91611797]
[1729738171021,0.00165,67287.0,67286.0,0.91611817]
[1729738174125,0.00165,67287.0,67286.0,0.91811817]
[1729738174318,0.00165,67287.0,67286.0,1.00927443]
[1729738177282,0.00165,67287.0,67286.0,1.00727443]
[1729738177700,0.00165,67287.0,67286.0,0.99518997]
[1729738177944,0.00165,67287.0,67286.0,1.00927435]
[1729738181624,0.00165,67287.0,67286.0,0.99718997]
[1729738182063,0.00165,67287.0,67286.0,1.00183773]
[1729738189101,0.00165,67287.0,67286.0,1.01113286]
[1729738189791,0.00165,67287.0,67286.0,1.12528912]
[1729738189991,0.00165,67292.0,67291.0,0.40574226]
[1729738190209,0.00165,67292.0,67291.0,0.57018896]
[1729738190430,0.00165,67292.0,67291.0,0.5888122]
[1729738190984,0.00165,67292.0,67291.0,0.49765594]
[1729738192806,0.00165,67292.0,67291.0,0.49765505]
[1729738194027,0.00165,67292.0,67291.0,0.50238885]
[1729738194438,0.00165,67292.0,67291.0,0.50238897]
[1729738196133,0.00165,67292.0,67291.0,0.50238896]
[1729738198390,0.00165,67292.0,67291.0,0.50738896]
[1729738201017,0.00165,67292.0,67291.0,0.50538896]
[1729738201642,0.00165,67292.0,67291.0,0.50738896]
[1729738202829,0.00165,67292.0,67291.0,0.49344685]
[1729738203052,0.00165,67292.0,67291.0,0.50738806]
[1729738203255,0.00165,67292.0,67291.0,0.60738806]
[1729738203896,0.00165,67292.0,67291.0,0.65372319]
[1729738204106,0.00165,67299.0,67298.0,0.38673026]
[1729738204336,0.00165,67299.0,67298.0,0.55617528]
[1729738204536,0.00165,67299.0,67298.0,0.57479689]
[1729738204661,0.02491052,67299.0,67298.0,0.59979689]
[1729738204876,0.22367362,67312.0,67300.0,0.12587]
[1729738205227,0.22367362,67312.0,67300.0,0.30886801]
[1729738206302,0.22367362,67312.0,67300.0,0.30886648]
[1729738206502,0.22367362,67312.0,67300.0,0.33186648]
[1729738206699,0.22367362,67312.0,67300.0,0.77763648]
[1729738209834,0.22367362,67312.0,67300.0,0.77763589]
[1729738210574,0.22367362,67312.0,67300.0,1.14069215]
[1729738210789,0.22367362,67312.0,67300.0,1.14548745]
[1729738212082,0.22367362,67312.0,67300.0,1.05433119]
[1729738212730,0.22367362,67312.0,67300.0,1.14548745]
[1729738213432,0.22367362,67312.0,67311.0,0.21000726]
[1729738213653,0.22367362,67312.0,67311.0,0.38360752]
[1729738213860,0.22367362,67312.0,67311.0,0.37896135]
[1729738214103,0.001652,67318.0,67317.0,0.11884]
[1729738214307,0.001652,67318.0,67317.0,0.2739899]
[1729738214759,0.001652,67318.0,67317.0,0.29243878]
[1729738215216,0.001652,67318.0,67317.0,0.38359504]
[1729738217062,0.001652,67318.0,67317.0,0.56217295]
[1729738217279,0.001652,67318.0,67317.0,0.46969504]
[1729738218023,0.001652,67318.0,67317.0,0.49750066]
[1729738220679,0.001652,67318.0,67317.0,0.49950066]
[1729738221167,0.001684,67330.0,67325.0,0.002]
[1729738221377,0.001684,67330.0,67325.0,0.37510248]
[1729738221583,0.001684,67330.0,67325.0,0.37213216]
[1729738221787,0.001684,67330.0,67329.0,0.118819]
[1729738221994,0.001684,67330.0,67329.0,0.36809529]
[1729738222216,0.001684,67330.0,67329.0,0.38341264]
[1729738224375,0.001684,67330.0,67329.0,0.38341151]
[1729738225264,0.000318,67331.0,67330.0,0.118817]
[1729738225478,0.000318,67331.0,67330.0,0.27396577]
[1729738225685,0.000318,67331.0,67330.0,0.29225302]
[1729738226443,0.000318,67331.0,67330.0,0.32522292]
[1729738226695,0.000318,67331.0,67330.0,0.58470928]
[1729738226942,0.000318,67331.0,67330.0,0.93912302]
[1729738227893,0.000318,67331.0,67330.0,1.13516479]
[1729738228592,0.000318,67331.0,67330.0,1.04400853]
[1729738228854,0.000318,67331.0,67330.0,1.16494479]
[1729738229096,0.001684,67338.0,67337.0,0.007]
[1729738229329,0.19981494,67341.0,67340.0,0.2468]
[1729738229550,0.1715861,67341.0,67340.0,0.59087459]
[1729738229773,0.0934,67357.0,67341.0,0.248798]
[1729738230046,0.0934,67357.0,67341.0,0.48341605]
[1729738230288,0.0934,67357.0,67341.0,0.49845749]
[1729738230511,0.0934,67357.0,67341.0,0.94394749]
[1729738230944,0.0934,67357.0,67341.0,0.94194749]
[1729738231408,0.0934,67357.0,67341.0,0.93730253]
[1729738231603,0.0934,67357.0,67341.0,0.94058014]
[1729738231863,0.0934,67357.0,67341.0,0.94394606]
[1729738232352,0.0934,67357.0,67341.0,0.94882437]
[1729738232627,0.0934,67357.0,67344.0,0.31494926]
[1729738232855,0.0934,67357.0,67344.0,0.4950966]
[1729738233079,0.0934,67357.0,67344.0,0.95843491]
[1729738234200,0.22367362,67360.0,67347.0,0.41124326]
[1729738234422,0.22367362,67360.0,67347.0,0.5663906]
[1729738234634,0.22367362,67360.0,67347.0,1.02965257]
[1729738234837,0.22367362,67360.0,67347.0,1.12080883]
[1729738235045,0.22367362,67360.0,67347.0,1.02500904]
[1729738235261,0.22367362,67360.0,67347.0,1.12080841]
[1729738235473,0.22367362,67360.0,67347.0,1.2161653]
[1729738235682,0.22367362,67360.0,67347.0,1.22080804]
[1729738235913,0.22367362,67360.0,67347.0,1.24648966]
[1729738237346,0.22367362,67360.0,67347.0,1.1553334]
[1729738239437,0.22367362,67360.0,67354.0,0.005]
[1729738239653,0.22367362,67360.0,67354.0,0.49307781]
[1729738239864,0.22367362,67360.0,67354.0,0.51086011]
[1729738241345,0.22367362,67360.0,67354.0,0.50621737]
[1729738241610,0.22367362,67360.0,67354.0,0.51086005]
[1729738242034,0.22367362,67360.0,67354.0,0.51286005]
[1729738242686,0.31707362,67360.0,67354.0,0.51086005]
[1729738243748,0.31707362,67360.0,67354.0,0.51558821]
[1729738246780,0.31707362,67360.0,67354.0,0.51758821]
[1729738247469,0.31707362,67360.0,67354.0,0.51558821]
[1729738248148,0.31707362,67360.0,67354.0,0.53325597]
[1729738249210,0.31707362,67360.0,67354.0,0.41909971]
[1729738249820,0.22367362,67360.0,67354.0,0.41909971]
[1729738250069,0.22367362,67360.0,67354.0,0.42109971]
[1729738250308,0.22367362,67360.0,67354.0,0.43583237]
[1729738250555,0.22367362,67360.0,67354.0,0.40343196]
[1729738250792,0.0934,67366.0,67354.0,0.44411862]
[1729738251015,0.0934,67366.0,67365.0,0.118756]
[1729738251243,0.0934,67366.0,67365.0,0.29158916]
[1729738251472,0.0934,67366.0,67365.0,0.30929956]
[1729738256484,0.05997264,67366.0,67365.0,0.30929956]
[1729738256682,0.05997264,67366.0,67365.0,0.32038606]
[1729738257526,0.06079664,67366.0,67365.0,0.32038606]
[1729738258382,0.06079664,67366.0,67365.0,0.30788606]
[1729738258602,0.06079664,67366.0,67365.0,0.27447021]
[1729738258787,0.06079664,67366.0,67365.0,0.30795689]
[1729738261042,0.06079664,67366.0,67365.0,0.27447021]
[1729738261249,0.06079664,67366.0,67365.0,0.30795777]
[1729738261798,0.06079664,67366.0,67365.0,0.27911277]
[1729738262618,0.000824,67366.0,67365.0,0.37026903]
[1729738262822,0.000824,67366.0,67365.0,0.27911277]
[1729738264696,0.000824,67366.0,67365.0,0.27911272]
[1729738268788,0.000824,67366.0,67365.0,0.27447021]
[1729738268994,0.000824,67366.0,67365.0,0.27911275]
[1729738272499,0.000824,67366.0,67365.0,0.27447021]
[1729738272720,0.000824,67366.0,67365.0,0.27911274]
[1729738273711,0.000824,67366.0,67365.0,0.28839795]
[1729738276155,0.180524,67366.0,67365.0,0.18214195]
[1729738276360,0.180524,67366.0,67365.0,0.30089795]
[1729738279858,0.180524,67366.0,67365.0,0.18214195]
[1729738279859,0.39543426,67366.0,67365.0,0.18214195]
[1729738280058,0.39543426,67366.0,67365.0,0.02235293]
[1729738280059,0.74997153,67366.0,67365.0,0.02235293]
[1729738280270,0.45111043,67366.0,67359.0,0.02574235]
[1729738280469,0.34799613,67360.0,67359.0,0.17624616]
[1729738280678,0.34799613,67360.0,67359.0,0.1901769]
[1729738280889,0.22923213,67360.0,67359.0,0.1901769]
[1729738281107,0.22923228,67360.0,67359.0,0.19017689]
[1729738281307,0.1847,67360.0,67359.0,0.1956689]
[1729738281521,0.1847,67360.0,67359.0,0.20495591]
[1729738282270,0.1797,67360.0,67359.0,0.1956689]
[1729738282484,0.303464,67360.0,67359.0,0.1956689]
[1729738282684,0.303464,67360.0,67359.0,0.18088974]
[1729738282892,0.35799628,67360.0,67359.0,0.03038593]
[1729738283091,0.56683996,67360.0,67359.0,0.00464358]
[1729738283396,0.44792979,67360.0,67349.0,0.0092879]
[1729738283607,0.04449424,67356.0,67351.0,0.118779]
[1729738283781,0.04449424,67356.0,67352.0,0.39270182]
[1729738283983,0.005,67359.0,67354.0,0.09115626]
[1729738284193,0.005,67359.0,67358.0,0.118768]
[1729738284397,0.005,67359.0,67358.0,0.27391582]
[1729738284599,0.005,67359.0,67358.0,0.28875993]
[1729738284798,0.005,67361.0,67360.0,0.118764]
[1729738285002,0.04449424,67364.0,67363.0,0.118758]
[1729738285003,0.005,67364.0,67363.0,0.118758]
[1729738285219,0.005,67364.0,67363.0,0.28874876]
[1729738285422,0.005,67364.0,67363.0,0.16999076]
[1729738285749,0.000824,67366.0,67365.0,0.118756]
[1729738285949,0.000824,67366.0,67365.0,0.2831904]
[1729738286240,0.000824,67366.0,67365.0,0.29803288]
[1729738287220,0.000824,67366.0,67365.0,0.17927688]
[1729738287830,0.000824,67366.0,67365.0,0.1699903]
[1729738288028,0.000824,67366.0,67365.0,0.17927688]
[1729738288477,0.000824,67366.0,67365.0,0.1699903]
[1729738288819,0.000824,67366.0,67365.0,0.17927688]
[1729738289837,0.000824,67366.0,67365.0,0.29803288]
[1729738290632,0.000824,67366.0,67365.0,0.56945795]
[1729738290835,0.000824,67366.0,67365.0,0.56770865]
[1729738291059,0.000824,67366.0,67365.0,0.56648914]
[1729738291741,0.000824,67366.0,67365.0,0.47532992]
[1729738291971,0.000824,67366.0,67365.0,0.47532979]
[1729738292201,0.000824,67366.0,67365.0,0.47654861]
[1729738292459,0.000824,67366.0,67365.0,0.56648605]
[1729738293141,0.000824,67366.0,67365.0,0.56813405]
[1729738294262,0.000824,67366.0,67365.0,0.47697779]
[1729738294481,0.000824,67366.0,67365.0,0.47819604]
[1729738294958,0.000824,67366.0,67365.0,0.47697779]
[1729738295413,0.000824,67366.0,67365.0,0.46305029]
[1729738295643,0.000824,67366.0,67365.0,0.47819615]
[1729738296802,0.000824,67366.0,67365.0,0.47697771]
[1729738300498,0.000824,67366.0,67365.0,0.29967771]
[1729738301448,0.000824,67366.0,67365.0,0.29503524]
[1729738301976,0.000824,67366.0,67365.0,0.28575029]
[1729738302185,0.000824,67366.0,67365.0,0.29503536]
[1729738303058,0.000824,67366.0,67365.0,0.29782087]
[1729738304758,0.000824,67366.0,67365.0,0.17906487]
[1729738304885,0.000824,67366.0,67365.0,0.29782087]
[1729738307716,0.000824,67366.0,67365.0,0.17906487]
[1729738308724,0.000824,67366.0,67365.0,0.29782087]
[1729738310903,0.000824,67366.0,67365.0,0.17906487]
[1729738311390,0.000824,67366.0,67365.0,0.29782087]
[1729738312866,0.088524,67366.0,67365.0,0.17906487]
[1729738313099,0.212278,67366.0,67365.0,0.17906487]
[1729738313583,0.212278,67366.0,67365.0,0.16422239]
[1729738314332,0.212278,67366.0,67365.0,0.01371858]
[1729738314333,0.43595162,67366.0,67365.0,0.01371858]
[1729738314565,0.35464709,67366.0,67365.0,0.01371858]
[1729738314787,0.37688164,67366.0,67365.0,0.01371858]
[1729738315016,0.56326775,67366.0,67365.0,0.01371858]
[1729738315430,0.47432956,67366.0,67365.0,0.01371858]
[1729738316523,0.310178,67366.0,67365.0,0.01371858]
[1729738316702,0.40133426,67366.0,67365.0,0.01371858]
[1729738316948,0.65438027,67366.0,67365.0,0.01371858]
[1729738317159,0.61101895,67366.0,67365.0,0.01371858]
[1729738317389,0.56322401,67366.0,67365.0,0.01371858]
[1729738319170,0.65438027,67366.0,67365.0,0.001648]
[1729738319375,0.47428582,67366.0,67365.0,0.001648]
[1729738320027,0.3768361,67366.0,67365.0,0.001648]
[1729738320498,0.22586038,67366.0,67365.0,0.001648]
[1729738320724,0.005824,67366.0,67365.0,0.15215181]
[1729738321156,0.005824,67366.0,67365.0,0.16451015]
[1729738321372,0.015824,67366.0,67365.0,0.16451015]
[1729738321594,0.134578,67366.0,67365.0,0.16451015]
[1729738322108,0.134578,67366.0,67365.0,0.15215181]
[1729738324487,0.015824,67366.0,67365.0,0.15215181]
[1729738324744,0.134578,67366.0,67365.0,0.15215181]
[1729738325396,0.015824,67366.0,67365.0,0.15215181]
[1729738325667,0.134578,67366.0,67365.0,0.16451015]
[1729738326146,0.134578,67366.0,67365.0,0.15215181]
[1729738326649,0.134578,67366.0,67365.0,0.16451015]
[1729738326891,0.015824,67366.0,67365.0,0.16451015]
[1729738327135,0.134578,67366.0,67365.0,0.15215181]
[1729738327373,0.239578,67366.0,67365.0,0.16451015]
[1729738327610,0.239578,67366.0,67365.0,0.15215181]
[1729738328108,0.239578,67366.0,67365.0,0.001648]
[1729738328360,0.408478,67366.0,67365.0,0.001648]
[1729738328605,0.413478,67366.0,67365.0,0.001648]
[1729738328840,0.48013148,67366.0,67365.0,0.001648]
[1729738329080,0.413478,67366.0,67365.0,0.001648]
[1729738329554,0.48012779,67366.0,67365.0,0.001648]
[1729738330458,0.413478,67366.0,67365.0,0.001648]
[1729738330902,0.46614758,67366.0,67365.0,0.001648]
[1729738332040,0.66635441,67366.0,67365.0,0.001648]
[1729738332245,0.68857101,67366.0,67365.0,0.001648]
[1729738332463,0.68855448,67366.0,67365.0,0.001648]
[1729738332883,0.57748802,67366.0,67365.0,0.001648]
[1729738333536,0.66632901,67366.0,67365.0,0.001648]
[1729738334593,0.57742902,67366.0,67365.0,0.001648]
[1729738334809,0.30619978,67366.0,67365.0,0.001648]
[1729738335023,0.234578,67366.0,67365.0,0.001648]
[1729738335231,0.239578,67366.0,67365.0,0.001648]
[1729738337867,0.28398521,67366.0,67365.0,0.001648]
[1729738339153,0.239578,67366.0,67365.0,0.001648]
[1729738340001,0.234578,67366.0,67365.0,0.001648]
[1729738340211,0.134578,67366.0,67365.0,0.001648]
[1729738340642,0.005824,67366.0,67365.0,0.23085181]
[1729738341074,0.005824,67366.0,67365.0,0.24324916]
[1729738341305,0.124578,67366.0,67365.0,0.24324916]
[1729738341512,0.124578,67366.0,67365.0,0.23085181]
[1729738341716,0.124578,67366.0,67365.0,0.24324916]
[1729738344225,0.000824,67366.0,67365.0,0.24324916]
[1729738344438,0.000824,67366.0,67365.0,0.45292242]
[1729738344673,0.000824,67366.0,67365.0,0.54722242]
[1729738345124,0.000824,67366.0,67365.0,0.46103234]
[1729738347559,0.000824,67366.0,67365.0,0.16454916]
[1729738347793,0.22549526,67366.0,67365.0,0.01404535]
[1729738348213,0.005824,67366.0,67365.0,0.15215181]
[1729738348838,0.005824,67366.0,67365.0,0.16235968]
[1729738349268,0.124578,67366.0,67365.0,0.16235968]
[1729738349918,0.124578,67366.0,67365.0,0.01185587]
[1729738349919,0.129578,67366.0,67365.0,0.01185587]
[1729738350135,0.134578,67366.0,67365.0,0.01185587]
[1729738350369,0.134578,67366.0,67365.0,0.001648]
[1729738350370,0.27017268,67366.0,67365.0,0.001648]
[1729738350583,0.52307628,67366.0,67365.0,0.001648]
[1729738350786,0.33683072,67366.0,67365.0,0.001648]
[1729738351000,0.27017268,67366.0,67365.0,0.001648]
[1729738351441,0.52307441,67366.0,67365.0,0.001648]
[1729738352620,0.43421412,67366.0,67365.0,0.001648]
[1729738353036,0.33683844,67366.0,67365.0,0.001648]
[1729738354145,0.33684674,67366.0,67365.0,0.001648]
[1729738354338,0.27017268,67366.0,67365.0,0.001648]
[1729738355339,0.52319128,67366.0,67365.0,0.001648]
[1729738358305,0.43429253,67366.0,67365.0,0.001648]
[1729738358783,0.43429253,67366.0,67365.0,0.15215181]
[1729738358784,0.19629488,67366.0,67365.0,0.15215181]
[1729738359007,0.29876418,67366.0,67365.0,0.15215181]
[1729738359254,0.2012955,67366.0,67365.0,0.16247117]
[1729738359471,0.2012955,67366.0,67365.0,0.15215181]
[1729738360591,0.05030119,67366.0,67365.0,0.27090781]
[1729738360817,0.005824,67366.0,67365.0,0.15215181]
[1729738361070,0.005824,67366.0,67365.0,0.16291639]
[1729738362274,0.000824,67366.0,67365.0,0.16291639]
[1729738362491,0.005824,67366.0,67365.0,0.37597239]
[1729738365648,0.005824,67366.0,67365.0,0.38525812]
[1729738366550,0.005824,67366.0,67365.0,0.26650212]
[1729738369034,0.005824,67366.0,67365.0,0.25721639]
[1729738369251,0.005824,67366.0,67365.0,0.26650212]
[1729738369437,0.005824,67366.0,67365.0,0.25721639]
[1729738370046,0.005824,67366.0,67365.0,0.1722022]
[1729738370289,0.134578,67366.0,67365.0,0.1722022]
[1729738370463,0.134578,67366.0,67365.0,0.16291639]
[1729738370674,0.134578,67366.0,67365.0,0.15215181]
[1729738370823,0.134578,67366.0,67365.0,0.16290018]
[1729738372703,0.134578,67366.0,67365.0,0.15215181]
[1729738373147,0.134578,67366.0,67365.0,0.16286252]
[1729738375934,0.134578,67366.0,67365.0,0.15215181]
[1729738376763,0.134578,67366.0,67365.0,0.16286252]
[1729738377194,0.134578,67366.0,67365.0,0.15215181]
[1729738377404,0.17905519,67366.0,67365.0,0.15215181]
[1729738377611,0.134578,67366.0,67365.0,0.15215181]
[1729738378499,0.17903517,67366.0,67365.0,0.15215181]
[1729738381396,0.134578,67366.0,67365.0,0.15215181]
[1729738381630,0.17904939,67366.0,67365.0,0.15215181]
[1729738382684,0.134578,67366.0,67365.0,0.15215181]
[1729738382927,0.1790518,67366.0,67365.0,0.15215181]
[1729738384641,0.134578,67366.0,67365.0,0.15215181]
[1729738385050,0.17905789,67366.0,67365.0,0.15215181]
[1729738385489,0.134578,67366.0,67365.0,0.15215181]
[1729738385698,0.015824,67366.0,67365.0,0.15215181]
[1729738385901,0.06030714,67366.0,67365.0,0.15215181]
[1729738386106,0.015824,67366.0,67365.0,0.16287763]
[1729738386314,0.015824,67366.0,67365.0,0.15215181]
[1729738386973,0.134578,67366.0,67365.0,0.15215181]
[1729738387641,0.010824,67366.0,67365.0,0.16287763]
[1729738387866,0.005824,67366.0,67365.0,0.37603363]
[1729738388144,0.005824,67366.0,67365.0,0.25727763]
[1729738391454,0.005824,67366.0,67365.0,0.16287763]